bitfinex/quotes_SOLUSD_20250508
["timestamp","ask_amount","ask_price","bid_price","bid_amount"]
[1746737711770,18.64964886,162.7,162.69,26.0]
[1746737712171,0.14216157,162.75,162.69,26.0]
[1746737712172,18.64964886,162.76,162.69,26.0]
[1746737712402,18.64964886,162.76,162.73,26.0]
[1746737712592,18.64964886,162.77,162.74,26.0]
[1746737712784,62.75721486,162.75,162.74,26.0]
[1746737712983,18.64964886,162.75,162.74,26.0]
[1746737713185,62.75721486,162.75,162.74,26.0]
[1746737713605,18.64964886,162.75,162.74,26.0]
[1746737713900,62.75721486,162.75,162.74,26.0]
[1746737714108,18.64964886,162.75,162.74,26.0]
[1746737714785,62.75721486,162.75,162.74,26.0]
[1746737715807,62.75721486,162.75,162.72,32.1454185]
[1746737716107,18.64964886,162.73,162.72,32.1454185]
[1746737716707,18.64964886,162.72,162.71,32.14586953]
[1746737718104,18.64964886,162.72,162.7,56.14617846]
[1746737718396,6.3483,162.77,162.7,6.14617846]
[1746737718397,18.64964886,162.71,162.7,6.14617846]
[1746737718611,18.64964886,162.78,162.73,26.0]
[1746737718799,47.6461692,162.74,162.73,26.0]
[1746737719482,6.28511203,162.79,162.73,26.0]
[1746737719483,0.14216157,162.77,162.73,26.0]
[1746737719684,47.6461692,162.74,162.73,26.0]
[1746737719889,18.64964886,162.74,162.73,26.0]
[1746737720085,47.6461692,162.74,162.73,26.0]
[1746737720291,18.64964886,162.74,162.73,26.0]
[1746737720503,47.6461692,162.74,162.72,6.14546816]
[1746737720703,47.6461692,162.74,162.73,26.0]
[1746737720912,18.64964886,162.74,162.73,26.0]
[1746737722102,47.6461692,162.74,162.72,6.14542279]
[1746737722301,18.64964886,162.74,162.72,6.14542279]
[1746737722902,47.6461692,162.76,162.75,26.0]
[1746737723614,18.64964886,162.76,162.75,26.0]
[1746737723998,18.64964886,162.75,162.73,32.14512758]
[1746737724205,47.6461692,162.74,162.73,26.0]
[1746737724407,18.64964886,162.74,162.73,26.0]
[1746737724729,47.6461692,162.74,162.73,26.0]
[1746737724905,18.64964886,162.73,162.71,26.0]
[1746737725226,18.64964886,162.73,162.72,26.0]
[1746737725398,1.67829298,162.79,162.68,138.44697644]
[1746737725399,24.93507127,162.78,162.68,138.44697644]
[1746737725717,18.64964886,162.74,162.71,26.0]
[1746737725899,18.64964886,162.74,162.72,26.0]
[1746737726614,0.14216157,162.78,162.73,26.0]
[1746737726988,47.6461692,162.74,162.73,26.0]
[1746737727415,18.64964886,162.74,162.73,26.0]
[1746737727998,47.6461692,162.74,162.73,32.1451484]
[1746737728810,18.64964886,162.74,162.73,26.0]
[1746737730232,47.6461692,162.74,162.73,26.0]
[1746737730899,18.64964886,162.74,162.73,26.0]
[1746737735346,47.6461692,162.74,162.73,26.0]
[1746737735647,18.64964886,162.74,162.73,26.0]
[1746737736025,47.6461692,162.74,162.73,26.0]
[1746737736429,18.64964886,162.74,162.73,26.0]
[1746737736631,1.6606,162.8,162.75,26.0]
[1746737736819,18.90721074,162.76,162.75,26.0]
[1746737737021,0.25756188,162.76,162.75,26.0]
[1746737737351,0.25756188,162.76,162.75,78.99652034]
[1746737737722,0.25756188,162.76,162.75,115.96652034]
[1746737737931,0.25756188,162.76,162.75,122.11091358]
[1746737738328,1.6609,162.88,162.75,275.67537634]
[1746737738532,1.6609,162.88,162.75,198.95942721]
[1746737738734,100.0,162.9,162.85,28.99652034]
[1746737738936,100.0,162.9,162.85,78.99652034]
[1746737739345,100.0,162.9,162.85,50.0]
[1746737739549,28.99652034,162.88,162.85,50.0]
[1746737739727,100.0,162.9,162.85,50.0]
[1746737739929,18.64964886,162.89,162.84,6.14099729]
[1746737740128,18.64964886,162.89,162.85,50.0]
[1746737740328,28.99652034,162.87,162.85,50.0]
[1746737740531,100.0,162.9,162.85,50.0]
[1746737740845,31.69800967,162.86,162.85,78.99652034]
[1746737741043,24.57800967,162.86,162.85,115.96652034]
[1746737741246,10.33800967,162.86,162.85,115.96652034]
[1746737741622,10.33800967,162.86,162.85,116.10868191]
[1746737741828,3.21800967,162.86,162.85,252.64930211]
[1746737742447,3.21800967,162.86,162.85,215.67930211]
[1746737743151,3.21800967,162.86,162.85,56.1406202]
[1746737743340,3.21800967,162.86,162.85,85.13714054]
[1746737743539,3.21800967,162.86,162.85,85.27930211]
[1746737743738,3.21800967,162.86,162.85,85.13714054]
[1746737744343,3.21800967,162.86,162.85,85.27930211]
[1746737744529,3.21800967,162.86,162.85,95.27930211]
[1746737745257,3.21800967,162.86,162.85,95.13714054]
[1746737745434,3.21800967,162.86,162.85,95.27930211]
[1746737746163,100.0,162.9,162.89,50.0]
[1746737746455,100.0,162.9,162.89,79.13868191]
[1746737746631,100.0,162.9,162.89,78.99652034]
[1746737746834,100.0,162.9,162.89,50.0]
[1746737747131,100.0,162.9,162.89,78.99652034]
[1746737747335,100.0,162.9,162.89,79.13868191]
[1746737747547,100.0,162.9,162.89,78.99652034]
[1746737747751,100.0,162.9,162.89,50.14216157]
[1746737747948,100.0,162.9,162.89,85.27779419]
[1746737748643,100.0,162.9,162.89,56.13911228]
[1746737748853,100.0,162.9,162.89,85.13563262]
[1746737750355,100.0,162.9,162.89,85.27779419]
[1746737750950,100.0,162.9,162.89,85.13563262]
[1746737751151,100.0,162.9,162.89,56.13911228]
[1746737751346,100.0,162.9,162.89,85.13563262]
[1746737751740,100.0,162.9,162.89,56.13911228]
[1746737751941,100.0,162.9,162.89,85.13563262]
[1746737752565,118.64964886,162.9,162.89,85.13563262]
[1746737752767,100.0,162.9,162.89,85.13563262]
[1746737753137,100.0,162.9,162.89,56.13911228]
[1746737753346,118.64964886,162.9,162.89,56.13911228]
[1746737753759,118.64964886,162.9,162.89,85.13563262]
[1746737754279,118.64964886,162.9,162.89,56.13911228]
[1746737754567,118.64964886,162.9,162.89,85.13563262]
[1746737754865,118.64964886,162.9,162.89,56.13911228]
[1746737755064,118.64964886,162.9,162.89,85.13563262]
[1746737755840,100.0,162.9,162.89,85.13563262]
[1746737756043,100.0,162.9,162.89,122.10563262]
[1746737756247,100.0,162.9,162.89,56.13911228]
[1746737756448,100.0,162.9,162.89,85.13563262]
[1746737756656,100.0,162.9,162.89,56.13911228]
[1746737756852,100.0,162.9,162.89,85.13563262]
[1746737757161,100.0,162.9,162.89,56.13911228]
[1746737757335,118.64964886,162.9,162.89,85.13563262]
[1746737757539,118.64964886,162.9,162.89,56.13911228]
[1746737757852,118.64964886,162.9,162.89,85.13563262]
[1746737758856,118.64964886,162.9,162.89,56.13911228]
[1746737759473,118.64964886,162.9,162.89,85.13563262]
[1746737760943,118.64964886,162.9,162.89,56.13911228]
[1746737761142,118.64964886,162.9,162.89,85.13563262]
[1746737762272,118.64964886,162.9,162.89,56.13911228]
[1746737762571,118.64964886,162.9,162.89,85.13563262]
[1746737763269,118.64964886,162.9,162.89,56.13911228]
[1746737763473,100.0,162.9,162.89,339.30563262]
[1746737763965,10.58,162.9,162.89,267.14779419]
[1746737764165,11.29152114,162.94,162.93,20.86647886]
[1746737764367,11.29152114,162.94,162.93,72.26804088]
[1746737764667,11.29152114,162.94,162.91,134.9]
[1746737764868,29.94117,162.94,162.93,45.12195692]
[1746737765070,67.5,162.95,162.94,9.90780169]
[1746737765283,3.994,163.0,162.99,50.0]
[1746737765488,3.994,163.0,162.96,87.33695076]
[1746737765489,0.09219831,162.97,162.96,87.33695076]
[1746737765651,1.94394071,162.99,162.98,58.24823211]
[1746737765973,1.0,163.1,163.04,19.18461848]
[1746737766147,1.0,163.1,163.04,8.06383549]
[1746737766349,1.0,163.1,163.09,17.78437102]
[1746737766548,1.0,163.1,163.03,7.87943887]
[1746737766549,6.12813349,163.19,163.1,50.0]
[1746737766550,25.61815719,163.19,163.1,50.0]
[1746737766846,13.86834958,163.18,163.11,247.32021521]
[1746737767051,13.86834958,163.18,163.17,15.12817076]
[1746737767375,41.04998331,163.21,163.18,36.97]
[1746737767552,41.04998331,163.21,163.15,229.7]
[1746737767745,41.04998331,163.21,163.12,15.14217156]
[1746737767746,30.88183885,163.19,163.09,18.45]
[1746737767959,40.88183758,163.19,163.04,28.99652034]
[1746737768153,30.87925398,163.15,163.09,50.0]
[1746737768477,30.87925398,163.15,163.02,229.7]
[1746737768478,2.08349115,163.04,163.02,229.7]
[1746737768769,2.08349115,163.04,163.03,51.74256723]
[1746737768954,30.24072809,163.18,163.12,28.99652034]
[1746737769275,10.82594293,163.12,162.93,2.71896629]
[1746737769450,10.82594293,163.12,163.06,28.99652034]
[1746737769650,20.82594166,163.12,163.04,28.99652034]
[1746737769957,10.82594293,163.12,163.04,28.99652034]
[1746737770144,10.82594293,163.12,163.01,50.0]
[1746737770348,10.82594293,163.12,163.02,15.33554165]
[1746737770569,20.82594166,163.12,163.02,15.33554165]
[1746737770776,9.99999873,163.11,163.02,15.33554165]
[1746737770956,9.99999873,163.09,163.02,15.33554165]
[1746737771163,9.99999873,163.06,163.0,6.13496932]
[1746737771362,9.99999873,163.05,163.0,6.13496932]
[1746737771573,28.99652034,163.05,162.95,6.13685179]
[1746737771780,9.99999873,163.03,162.95,6.13685179]
[1746737771964,9.99999873,163.05,162.95,6.13685179]
[1746737772169,28.99652034,162.99,162.93,7.20023512]
[1746737772381,9.99999873,162.99,162.93,7.20023512]
[1746737772673,9.99999873,162.99,162.95,28.99652034]
[1746737772882,28.99652034,162.99,162.93,7.20023512]
[1746737773063,9.99999873,163.02,162.93,7.20023512]
[1746737773263,9.99999873,163.0,162.93,22.54424788]
[1746737773468,9.99999873,163.0,162.96,28.99652034]
[1746737773969,6.5772,163.07,162.93,22.54424788]
[1746737773970,9.99999873,162.99,162.93,22.54424788]
[1746737774154,9.99999873,162.99,162.95,43.83181861]
[1746737774355,9.99999873,162.99,162.95,6.1364764]
[1746737774563,6.13338956,163.05,162.95,6.1364764]
[1746737774564,9.99999873,163.11,162.98,93.83181861]
[1746737774769,9.99999873,163.08,163.01,26.0]
[1746737774979,9.99999873,163.09,163.04,26.0]
[1746737775276,10.82594293,163.12,163.04,26.0]
[1746737775277,9.99999873,163.07,163.04,26.0]
[1746737775478,9.99999873,163.04,162.99,26.0]
[1746737775685,49.96237878,163.12,162.99,26.0]
[1746737775686,9.99999873,163.02,162.99,26.0]
[1746737775873,9.99999873,163.01,162.99,43.83181861]
[1746737776064,9.99999873,163.02,162.95,21.47860588]
[1746737776268,9.99999873,163.02,162.96,43.83181861]
[1746737776470,9.99999873,163.02,162.95,15.34212948]
[1746737776782,18.64964886,163.01,162.99,26.0]
[1746737776975,18.64964886,163.01,163.0,43.83181861]
[1746737777558,18.64964886,163.01,162.99,26.0]
[1746737777760,28.64964759,163.01,162.95,15.34212948]
[1746737778185,18.64964886,162.99,162.94,6.13722842]
[1746737778373,18.64964886,163.01,162.98,49.96754078]
[1746737778689,18.64964886,163.01,163.0,43.83181861]
[1746737778983,18.64964886,163.01,162.98,21.4750276]
[1746737779483,18.64964886,163.02,163.0,43.83181861]
[1746737779685,28.64964759,163.02,163.01,43.83181861]
[1746737780183,18.64964886,163.02,163.01,43.83181861]
[1746737780359,18.64964886,163.02,163.01,49.96641157]
[1746737780561,28.64964759,163.02,162.99,26.0]
[1746737780761,9.99999873,163.01,162.99,26.0]
[1746737781171,28.64964759,163.02,163.0,43.83181861]
[1746737781489,28.64964759,163.02,163.01,43.83181861]
[1746737781676,18.64964886,163.02,163.01,43.83181861]
[1746737781859,9.99999873,163.06,163.01,43.83181861]
[1746737782066,18.64964886,163.05,162.99,47.47355989]
[1746737782468,18.64964886,163.03,162.99,47.47355989]
[1746737782883,9.99999873,163.15,163.03,26.0]
[1746737783068,11.55659873,163.17,163.05,26.0]
[1746737783266,11.55659873,163.17,163.0,86.97]
[1746737783267,9.99999873,163.15,163.03,26.0]
[1746737783468,9.99999873,163.09,163.03,26.0]
[1746737783680,28.64964759,163.08,163.04,26.0]
[1746737783864,18.64964886,163.05,163.04,26.0]
[1746737784108,9.99999873,163.1,163.04,113.60295888]
[1746737784373,28.64964759,163.09,163.04,69.80147944]
[1746737784685,28.64964759,163.09,163.05,6.133088]
[1746737785079,9.99999873,163.08,163.05,6.133088]
[1746737785281,18.64964886,163.09,163.05,21.46580802]
[1746737785484,18.64964886,163.09,163.08,43.80147944]
[1746737785684,18.64964886,163.09,163.05,21.46580802]
[1746737785685,28.64964759,163.09,163.05,21.46580802]
[1746737785865,9.99999873,163.08,163.05,21.46580802]
[1746737786063,9.99999873,163.08,163.07,43.80147944]
[1746737786387,18.64964886,163.14,163.07,69.80147944]
[1746737786388,18.64964886,163.09,163.07,69.80147944]
[1746737786586,18.64964886,163.15,163.11,26.0]
[1746737786798,28.64964759,163.15,163.13,43.80147944]
[1746737786964,18.64964886,163.12,163.11,26.0]
[1746737787281,9.99999873,163.16,163.11,69.80147944]
[1746737787470,9.99999873,163.16,163.15,43.80147944]
[1746737787671,28.64964759,163.14,163.11,26.0]
[1746737787871,9.99999873,163.14,163.13,43.80147944]
[1746737788068,9.99999873,163.14,163.11,26.0]
[1746737788069,18.64964886,163.15,163.11,26.0]
[1746737788284,9.99999873,163.14,163.11,26.0]
[1746737788590,28.64964759,163.13,163.12,6.13031796]
[1746737789094,18.64964886,163.08,163.05,21.46536705]
[1746737789308,28.64964759,163.08,163.05,6.133088]
[1746737789465,28.64964759,163.08,163.07,43.75861329]
[1746737789970,28.64964759,163.07,163.06,43.75861329]
[1746737790179,9.99999873,163.04,162.98,6.13572217]
[1746737790393,9.99999873,163.02,162.99,15.33789296]
[1746737790596,18.64964886,163.01,162.97,21.47634533]
[1746737790772,28.64964759,163.01,163.0,43.75861329]
[1746737791182,28.64964759,163.01,162.97,21.47634533]
[1746737791380,28.64964759,163.01,163.0,43.75861329]
[1746737791695,18.64964886,163.01,163.0,26.0]
[1746737792184,9.99999873,163.04,163.0,69.75861329]
[1746737792495,9.99999873,163.04,163.01,6.13459296]
[1746737792699,18.64964886,163.02,163.01,6.13459296]
[1746737793000,18.64964886,163.02,163.01,49.89320625]
[1746737793180,18.64964886,163.02,163.01,43.75861329]
[1746737793385,28.64964759,163.01,162.98,6.13572217]
[1746737793595,9.99999873,163.0,162.95,6.13685179]
[1746737793804,18.64964886,162.98,162.95,6.13685179]
[1746737793987,18.64964886,162.98,162.97,43.75861329]
[1746737794193,28.64964759,162.98,162.97,43.75861329]
[1746737794498,18.64964886,162.98,162.94,6.13722842]
[1746737794695,28.64964759,162.97,162.94,6.13722842]
[1746737794900,18.64964886,162.97,162.96,26.0]
[1746737795200,9.99999873,163.0,162.96,43.75861329]
[1746737795374,6.6043,163.06,162.99,43.75861329]
[1746737795375,9.99999873,163.02,162.99,43.75861329]
[1746737795573,9.99999873,163.02,162.96,43.75861329]
[1746737795574,28.64964759,163.0,162.97,26.0]
[1746737795783,18.64964886,162.99,162.94,6.13722842]
[1746737796005,18.64964886,162.97,162.96,26.0]
[1746737796295,9.99999873,163.03,162.99,26.0]
[1746737796508,18.64964886,163.04,163.0,6.13496932]
[1746737796999,18.64964886,163.02,163.0,6.13496932]
[1746737797195,28.64964759,163.01,163.0,6.13496932]
[1746737797494,28.64964759,163.0,162.97,26.0]
[1746737797702,28.64964759,163.0,162.99,43.75861329]
[1746737797902,28.64964759,163.0,162.98,6.13542651]
[1746737798106,18.64964886,163.01,162.98,6.13542651]
[1746737798304,9.99999873,163.01,162.99,43.75861329]
[1746737798479,18.64964886,163.03,163.0,49.89358261]
[1746737798480,28.64964759,163.03,163.0,49.89358261]
[1746737798677,18.64964886,163.05,163.0,6.13496932]
[1746737799120,18.64964886,163.05,163.02,43.75861329]
[1746737799407,18.64964886,163.05,163.03,43.75861329]
[1746737799587,18.64964886,163.05,163.0,21.47239263]
[1746737799787,18.64964886,163.05,163.02,43.75861329]
[1746737799987,18.64964886,163.05,163.04,43.75861329]
[1746737800289,28.64964759,163.05,163.03,26.0]
[1746737800481,28.64964759,163.05,163.04,49.89207747]
[1746737801102,28.64964759,163.05,163.04,6.13346418]
[1746737801311,28.64964759,163.05,163.04,49.89207747]
[1746737801514,28.64964759,163.05,163.04,6.13346418]
[1746737801981,18.64964886,163.05,163.04,6.13346418]
[1746737802181,28.64964759,163.05,163.04,49.89207747]
[1746737802683,18.64964886,163.05,163.04,49.89207747]
[1746737802885,28.64964759,163.05,163.04,49.89207747]
[1746737803101,28.64964759,163.05,163.04,6.13346418]
[1746737803784,18.64964886,163.03,163.0,15.33742331]
[1746737803983,28.64964759,163.01,163.0,21.47239263]
[1746737804216,28.64964759,163.01,163.0,49.89358261]
[1746737804390,18.64964886,163.01,163.0,49.89358261]
[1746737804591,18.64964886,163.01,163.0,6.13496932]
[1746737804809,28.64964759,163.01,163.0,6.13496932]
[1746737805008,28.64964759,163.0,162.99,32.13525368]
[1746737805322,9.99999873,163.01,162.99,75.89386697]
[1746737805488,9.99999873,163.01,162.99,32.13525368]
[1746737805683,9.99999873,163.01,163.0,43.75861329]
[1746737805888,28.64964759,163.01,163.0,43.75861329]
[1746737806088,18.64964886,163.0,162.99,32.13525368]
[1746737806506,28.64964759,163.0,162.99,75.89386697]
[1746737806712,18.64964886,163.01,162.99,75.89386697]
[1746737806908,18.64964886,163.01,163.0,43.75861329]
[1746737807219,18.64964886,163.02,163.0,43.75861329]
[1746737807413,18.64964886,163.03,163.01,43.75861329]
[1746737807618,28.64964759,163.03,163.02,69.75861329]
[1746737807797,18.64964886,163.05,163.04,26.0]
[1746737808001,28.64964759,163.05,163.04,69.75861329]
[1746737808303,18.64964886,163.05,163.04,43.75861329]
[1746737808508,28.64964759,163.05,163.04,43.75861329]
[1746737808703,28.64964759,163.05,163.04,6.13346418]
[1746737808913,28.64964759,163.05,163.04,49.89207747]
[1746737809216,18.64964886,163.05,163.04,49.89207747]
[1746737809515,28.64964759,163.05,163.04,32.13346418]
[1746737809911,28.64964759,163.05,163.04,75.89207747]
[1746737810491,28.64964759,163.05,163.04,32.13346418]
[1746737811116,28.64964759,163.05,163.04,6.13346418]
[1746737811308,28.64964759,163.05,163.04,49.89207747]
[1746737811510,28.64964759,163.05,163.04,6.13346418]
[1746737811832,28.64964759,163.05,163.04,49.89207747]
[1746737812414,9.99999873,163.04,163.03,6.13375549]
[1746737812585,28.64964759,163.04,163.03,49.89236878]
[1746737812785,28.64964759,163.04,163.03,6.13375549]
[1746737813319,28.64964759,163.03,163.02,32.13421666]
[1746737813500,28.64964759,163.03,163.02,75.89282995]
[1746737813697,28.64964759,163.03,162.94,30.68472268]
[1746737813698,18.64964886,162.98,162.94,21.47944084]
[1746737813912,18.64964886,162.98,162.97,43.75861329]
[1746737814150,9.99999873,162.98,162.97,43.75861329]
[1746737814718,28.64964759,162.98,162.97,69.75861329]
[1746737814895,18.64964886,162.98,162.97,6.13609866]
[1746737815105,18.64964886,162.98,162.97,49.89471195]
[1746737815293,28.64964759,162.98,162.97,32.13609866]
[1746737815496,18.64964886,162.98,162.97,32.13609866]
[1746737815694,28.64964759,162.98,162.97,32.13609866]
[1746737816004,28.64964759,162.98,162.97,61.02780273]
[1746737816316,18.64964886,162.98,162.97,61.02780273]
[1746737816509,28.64964759,162.98,162.97,61.02780273]
[1746737817926,18.64964886,162.98,162.97,61.02780273]
[1746737818402,18.64964886,162.98,162.97,26.0]
[1746737818403,28.64964759,162.98,162.97,26.0]
[1746737818904,9.99999873,162.92,162.87,15.34966537]
[1746737819108,18.64964886,162.94,162.91,28.89170407]
[1746737819109,9.99999873,162.93,162.91,28.89170407]
[1746737819421,18.64964886,162.88,162.86,6.14024315]
[1746737819595,9.99999873,162.89,162.86,6.14024315]
[1746737819596,18.64964886,162.87,162.86,6.14024315]
[1746737819792,28.64964759,162.87,162.86,35.03194722]
[1746737819995,36.67653996,162.96,162.8,28.89170407]
[1746737819996,18.64964886,162.83,162.82,6.14175162]
[1746737820192,28.64964759,162.83,162.82,35.03345569]
[1746737820515,28.64964759,162.83,162.82,6.14175162]
[1746737820703,9.99999873,162.84,162.79,6.14288346]
[1746737821023,6.4989,162.86,162.75,6.37796388]
[1746737821024,18.64964886,162.8,162.76,6.14401572]
[1746737821222,18.64964886,162.77,162.76,6.14401572]
[1746737821519,28.64964759,162.77,162.76,6.14401572]
[1746737821917,28.64964759,162.77,162.76,50.09127266]
[1746737822109,18.64964886,162.77,162.76,50.09127266]
[1746737822413,18.64964886,162.77,162.76,32.14401572]
[1746737822601,28.64964759,162.77,162.76,50.09127266]
[1746737822795,28.64964759,162.77,162.76,6.14401572]
[1746737823019,28.64964759,162.77,162.76,50.09127266]
[1746737823199,28.64964759,162.76,162.75,6.37796388]
[1746737823898,9.99999873,162.76,162.75,6.37796388]
[1746737824104,9.99999873,162.76,162.75,12.52235712]
[1746737824314,9.99999873,162.76,162.75,6.37796388]
[1746737824501,9.99999873,162.76,162.75,56.46961406]
[1746737824700,1.5595,162.84,162.77,26.0]
[1746737824906,18.64964886,162.83,162.77,26.0]
[1746737825104,45.50675694,162.84,162.79,43.94725694]
[1746737825423,18.64964886,162.82,162.8,43.94725694]
[1746737825623,1.5595,162.84,162.81,43.94725694]
[1746737825800,18.64964886,162.83,162.8,26.0]
[1746737826001,6.4989,162.86,162.83,26.0]
[1746737826306,6.4989,162.86,162.85,69.94725694]
[1746737826514,6.4989,162.86,162.85,26.0]
[1746737826724,25.14854886,162.86,162.85,26.0]
[1746737826902,25.14854886,162.86,162.85,69.94725694]
[1746737827098,25.14854886,162.86,162.85,26.0]
[1746737827408,18.64964886,162.85,162.82,69.94725694]
[1746737827621,6.4989,162.86,162.82,69.94725694]
[1746737827826,6.4989,162.86,162.83,43.94725694]
[1746737828029,18.64964886,162.85,162.83,43.94725694]
[1746737828327,18.64964886,162.85,162.82,26.0]
[1746737828828,18.64964886,162.84,162.82,26.0]
[1746737829021,18.64964886,162.84,162.82,76.08900479]
[1746737829221,18.64964886,162.85,162.82,32.14174785]
[1746737829404,18.64964886,162.85,162.82,32.14169954]
[1746737829601,18.64964886,162.85,162.84,69.94725694]
[1746737830022,18.64964886,162.85,162.84,26.0]
[1746737830627,18.64964886,162.85,162.82,6.14169954]
[1746737830832,18.64964886,162.85,162.82,26.0]
[1746737830833,18.64964886,162.83,162.82,26.0]
[1746737831131,18.64964886,162.82,162.77,43.92181028]
[1746737831309,62.57145914,162.81,162.76,6.14401572]
[1746737831506,18.64964886,162.79,162.76,6.14401572]
[1746737831817,18.64964886,162.79,162.76,32.14401572]
[1746737832025,64.20015914,162.78,162.75,6.37796388]
[1746737832340,62.57145914,162.76,162.75,6.37796388]
[1746737832510,18.64964886,162.76,162.75,6.37796388]
[1746737832710,18.64964886,162.76,162.75,56.4441674]
[1746737833112,18.64964886,162.76,162.75,6.37796388]
[1746737833510,62.57145914,162.76,162.75,6.37796388]
[1746737833710,62.57145914,162.76,162.7,6.14626753]
[1746737833934,18.64964886,162.76,162.7,76.06807781]
[1746737834118,18.64964886,162.74,162.7,6.14626753]
[1746737834323,18.64964886,162.74,162.65,15.37024792]
[1746737834324,62.57145914,162.74,162.69,6.14662499]
[1746737834536,62.57145914,162.74,162.69,76.06843527]
[1746737834833,18.64964886,162.76,162.71,43.92181028]
[1746737835034,62.57145914,162.76,162.71,43.92181028]
[1746737835242,18.64964886,162.74,162.7,43.92181028]
[1746737835411,18.64964886,162.74,162.69,32.14662499]
[1746737835613,18.64964886,162.73,162.69,43.92181028]
[1746737835814,62.57145914,162.73,162.65,15.37024792]
[1746737836125,18.64964886,162.71,162.67,43.92181028]
[1746737836311,1.1267308,162.73,162.65,6.14817091]
[1746737836515,1.1267308,162.73,162.66,43.92181028]
[1746737836516,18.64964886,162.7,162.66,43.92181028]
[1746737836711,62.57145914,162.7,162.65,6.14817091]
[1746737836934,62.57145914,162.7,162.66,43.92181028]
[1746737837135,62.57145914,162.7,162.59,30.8076253]
[1746737837341,1.1267308,162.73,162.64,43.92181028]
[1746737837525,18.64964886,162.72,162.68,43.92181028]
[1746737837717,18.64964886,162.7,162.67,43.92181028]
[1746737837912,18.64964886,162.7,162.59,61.55982408]
[1746737838114,18.64964886,162.7,162.62,26.0]
[1746737838325,18.64964886,162.7,162.67,43.92181028]
[1746737838523,18.64964886,162.72,162.67,43.92181028]
[1746737838743,18.64964886,162.72,162.68,43.92181028]
[1746737838918,18.64964886,162.72,162.69,43.92181028]
[1746737839119,18.64964886,162.72,162.66,6.14779294]
[1746737839427,18.64964886,162.66,162.6,6.1500615]
[1746737839630,18.64964886,162.66,162.62,43.92181028]
[1746737839940,15.36574886,162.66,162.62,43.92181028]
[1746737840115,15.36574886,162.66,162.61,26.0]
[1746737840517,15.36574886,162.66,162.63,26.0]
[1746737840738,15.36574886,162.66,162.63,69.92181028]
[1746737840939,15.36574886,162.66,162.63,26.0]
[1746737841251,15.36574886,162.66,162.61,32.14947846]
[1746737841546,15.36574886,162.66,162.61,50.07128874]
[1746737841722,15.36574886,162.66,162.62,43.92181028]
[1746737841923,15.36574886,162.66,162.61,32.14947846]
[1746737842125,59.28755914,162.66,162.62,43.92181028]
[1746737842431,18.64964886,162.66,162.62,43.92181028]
[1746737842629,18.64964886,162.66,162.63,43.92181028]
[1746737842938,18.64964886,162.66,162.65,43.92181028]
[1746737843125,20.18666334,162.66,162.5,6.4538]
[1746737843436,18.64964886,162.66,162.62,43.92181028]
[1746737843756,20.18694589,162.66,162.59,26.0]
[1746737843945,18.64964886,162.63,162.59,26.0]
[1746737844244,1.53756354,162.64,162.54,3.09402089]
[1746737844546,18.64964886,162.62,162.57,43.92181028]
[1746737844755,18.64964886,162.62,162.59,26.0]
[1746737844925,0.14216157,162.66,162.51,86.27231607]
[1746737844926,18.64964886,162.59,162.51,24.73863878]
[1746737845337,18.64964886,162.6,162.51,24.73863878]
[1746737845526,0.14216157,162.65,162.51,24.73863878]
[1746737845527,5.46175423,162.79,162.52,10.0]
[1746737845725,2.66469197,162.71,162.54,10.0]
[1746737845925,1.1267308,162.7,162.56,43.92181028]
[1746737846125,1.53777395,162.69,162.59,43.92181028]
[1746737846334,43.92181028,162.63,162.54,36.0]
[1746737846536,1.53784665,162.62,162.54,36.0]
[1746737846850,21.51066313,162.71,162.6,43.92181028]
[1746737847052,21.51066313,162.71,162.62,43.92181028]
[1746737847263,21.51066313,162.71,162.58,26.0]
[1746737847550,62.57145914,162.64,162.58,26.0]
[1746737847746,47.51066313,162.71,162.57,69.92181028]
[1746737847747,43.92181028,162.62,162.57,69.92181028]
[1746737847920,18.79181043,162.7,162.61,43.92181028]
[1746737848127,18.64964886,162.66,162.57,26.0]
[1746737848543,25.05674886,162.66,162.57,26.0]
[1746737848745,25.05674886,162.66,162.64,43.92181028]
[1746737848958,18.64964886,162.69,162.64,6.14838529]
[1746737849154,18.64964886,162.69,162.67,46.06139721]
[1746737849451,18.64964886,162.69,162.68,46.06139721]
[1746737849653,18.64964886,162.69,162.64,6.14838529]
[1746737850129,18.64964886,162.69,162.68,46.06139721]
[1746737850330,6.4071,162.7,162.68,46.06139721]
[1746737850626,18.64964886,162.71,162.69,46.06139721]
[1746737850826,18.64964886,162.71,162.64,6.14838529]
[1746737851558,18.64964886,162.71,162.69,46.06139721]
[1746737852155,18.64964886,162.71,162.64,6.14838529]